bitfinex-derivatives/quotes_ETHF0:USTF0_20250101
["timestamp","ask_amount","ask_price","bid_price","bid_amount"]
[1735738654448,0.29979,3341.8,3341.4,1.18482]
[1735738654746,0.29979,3341.8,3341.7,3.2078]
[1735738654948,2.7521,3342.4,3341.7,3.2078]
[1735738655143,2.7521,3342.4,3342.3,0.29974]
[1735738655144,3.05184,3342.4,3342.3,0.29974]
[1735738655353,0.29973,3342.5,3342.3,0.29974]
[1735738655557,0.29973,3342.5,3342.4,0.4322]
[1735738655946,0.29971,3342.7,3342.5,0.29973]
[1735738656146,0.29971,3342.7,3342.5,3.50753]
[1735738656952,3.2078,3343.1,3342.5,3.2078]
[1735738657155,0.2997,3342.9,3342.5,3.2078]
[1735738657348,0.2997,3342.9,3342.6,0.29972]
[1735738658248,0.29971,3342.7,3342.5,3.50752]
[1735738659552,3.2078,3343.1,3342.5,3.2078]
[1735738659553,0.29972,3342.6,3342.5,3.2078]
[1735738664660,0.74924,3342.9,3342.1,3.2078]
[1735738664853,0.29975,3342.2,3342.1,3.6486]
[1735738666055,0.29974,3342.3,3342.1,3.94836]
[1735738666553,0.4415,3342.8,3342.1,3.6486]
[1735738666751,0.29972,3342.6,3342.5,3.2078]
[1735738667054,0.4658,3343.0,3342.5,4.40212]
[1735738667260,0.2997,3342.8,3342.6,41.09971]
[1735738667454,0.29968,3343.0,3342.7,0.7487]
[1735738667756,0.4448,3343.2,3342.7,0.449]
[1735738667757,0.2997,3342.8,3342.7,0.449]
[1735738671655,0.2997,3342.8,3342.7,0.74871]
[1735738671859,0.2997,3342.8,3342.7,0.449]
[1735738674061,3.957,3343.1,3342.5,4.1024]
[1735738674356,0.29972,3342.6,3342.5,4.1024]
[1735738674954,0.29972,3342.7,3342.5,4.40212]
[1735738675156,3.957,3343.1,3342.5,4.40212]
[1735738675356,0.29972,3342.6,3342.5,4.40212]
[1735738676462,3.957,3343.1,3342.5,4.1024]
[1735738676765,0.29972,3342.6,3342.5,4.1024]
[1735738677157,0.29972,3342.6,3342.5,4.40213]
[1735738677351,0.29971,3342.7,3342.5,4.1024]
[1735738677656,0.29972,3342.6,3342.5,4.40212]
[1735738680354,0.29972,3342.6,3342.5,3.664]
[1735738680560,0.29972,3342.6,3342.5,3.2078]
[1735738681462,0.29971,3342.7,3342.5,3.50752]
[1735738681666,0.2997,3342.8,3342.7,0.29971]
[1735738682362,3.2078,3343.1,3342.6,0.4546]
[1735738682565,3.2078,3343.1,3342.7,0.2997]
[1735738682864,0.2997,3342.8,3342.7,0.2997]
[1735738683068,0.2997,3342.8,3342.7,41.0997]
[1735738683367,0.29966,3343.2,3342.8,0.2997]
[1735738683556,0.29965,3343.4,3343.1,3.50746]
[1735738683762,0.29966,3343.3,3343.2,0.4546]
[1735738683961,0.29965,3343.4,3343.2,0.75426]
[1735738684258,0.74906,3343.7,3343.2,0.75426]
[1735738684458,0.29965,3343.3,3343.2,0.4546]
[1735738686665,3.8911,3343.9,3343.2,2.73170259]
[1735738686865,0.29965,3343.3,3343.2,0.4546]
[1735738687065,0.74903,3343.8,3343.2,0.75426]
[1735738687258,0.29963,3343.6,3343.4,0.29964]
[1735738688868,0.4391,3343.9,3343.4,0.29964]
[1735738689067,0.29964,3343.5,3343.4,0.29964]
[1735738689368,0.29963,3343.6,3343.4,0.29964]
[1735738689664,0.29965,3343.4,3343.2,0.4546]
[1735738689865,0.29965,3343.4,3343.3,0.29965]
[1735738690065,0.29964,3343.5,3343.3,0.29965]
[1735738691164,0.29964,3343.6,3343.4,0.29964]
[1735738691362,0.29962,3343.7,3343.5,0.29963]
[1735738691563,0.2996,3344.0,3343.7,0.29962]
[1735738691764,0.2996,3343.9,3343.8,0.45]
[1735738693465,2.27710259,3344.0,3343.6,3.2078]
[1735738693769,0.29962,3343.7,3343.6,3.2078]
[1735738695072,0.4233,3343.8,3343.6,3.2078]
[1735738695266,0.29965,3343.7,3343.6,3.2078]
[1735738697272,0.29967,3343.5,3343.4,0.889]
[1735738698675,6.47824259,3343.7,3343.2,3.2078]
[1735738698875,0.29968,3343.3,3343.2,3.2078]
[1735738699277,0.72658,3343.3,3343.2,3.2078]
[1735738699471,0.4269,3343.3,3342.4,40.8]
[1735738699673,0.4269,3343.3,3342.7,3.2078]
[1735738699674,0.74928,3343.1,3342.7,3.2078]
[1735738699878,0.29973,3342.8,3342.7,3.2078]
[1735738707780,0.29976,3342.5,3342.3,3.50757]
[1735738709384,0.29976,3342.4,3342.3,3.50757]
[1735738709576,3.02638259,3343.1,3342.3,3.2078]
[1735738709986,0.29976,3342.4,3342.3,3.2078]
[1735738712280,0.29976,3342.5,3342.3,3.50757]
[1735738712584,0.29975,3342.6,3342.4,0.73036]
[1735738714187,0.29974,3342.7,3342.5,0.29975]
[1735738714486,5.48490259,3343.1,3342.4,0.4306]
[1735738714683,0.29973,3342.8,3342.4,0.4306]
[1735738714884,0.29973,3342.8,3342.6,0.29974]
[1735738715386,0.29973,3342.8,3342.7,3.6424]
[1735738719492,0.29973,3342.8,3342.7,0.4346]
[1735738719791,6.69948259,3343.1,3342.4,0.4306]
[1735738719792,0.29976,3342.5,3342.4,0.4306]
[1735738719991,0.29976,3342.5,3342.4,0.8581]
[1735738721587,2.27710259,3342.8,3342.3,3.2078]
[1735738721588,0.29976,3342.4,3342.3,3.2078]
[1735738721788,1.18726,3342.4,3342.3,3.2078]
[1735738722186,1.60896,3342.4,3342.3,3.2078]
[1735738724498,0.29981,3341.9,3341.8,4.4888]
[1735738724690,0.29981,3341.9,3341.8,4.78862]
[1735738724997,0.29981,3341.9,3341.8,4.4888]
[1735738725390,0.74945,3342.3,3341.8,4.4888]
[1735738725598,0.29977,3342.3,3342.2,3.2078]
[1735738725791,0.8875,3342.4,3341.8,4.4888]
[1735738726097,0.29981,3341.9,3341.8,1.281]
[1735738727992,3.2078,3342.2,3341.8,1.281]
[1735738728300,3.2078,3342.2,3341.9,0.29981]
[1735738728498,0.2998,3342.0,3341.8,1.281]
[1735738728798,0.2998,3342.0,3341.8,1.58081]
[1735738730118,0.29978,3342.3,3342.1,0.29979]
[1735738730301,0.29978,3342.3,3342.1,3.50759]
[1735738730495,0.29978,3342.2,3342.1,3.50759]
[1735738730694,3.19210259,3342.7,3342.1,3.50759]
[1735738730695,0.29978,3342.3,3342.1,3.50759]
[1735738730897,3.19210259,3342.7,3342.1,3.2078]
[1735738731098,0.29978,3342.2,3342.1,3.2078]
[1735738731592,2.72570259,3342.7,3342.1,3.50759]
[1735738731798,0.74937,3342.6,3341.8,1.281]
[1735738731995,0.2998,3342.1,3341.9,0.2998]
[1735738732197,0.74937,3342.6,3342.0,0.2998]
[1735738732394,0.29979,3342.2,3342.0,0.2998]
[1735738734303,0.29978,3342.3,3342.1,3.50759]
[1735738735298,2.72570259,3342.7,3342.1,3.50759]
[1735738735499,0.29978,3342.2,3342.1,3.50759]
[1735738736302,0.29978,3342.2,3342.1,3.2078]
[1735738737306,0.29981,3341.9,3341.8,1.281]
[1735738738208,0.29985,3341.4,3341.3,3.2078]
[1735738738398,0.29985,3341.4,3341.3,3.6593]
[1735738738903,0.29985,3341.4,3341.3,3.95916]
[1735738739106,0.29985,3341.4,3341.3,3.6593]
[1735738739500,0.29985,3341.4,3341.3,4.0961]
[1735738740201,0.29985,3341.4,3341.3,4.39596]
[1735738740707,0.29985,3341.4,3341.3,4.0961]
[1735738745207,0.29985,3341.4,3341.3,4.39596]
[1735738745708,0.29985,3341.4,3341.3,4.0961]
[1735738747208,0.29986,3341.3,3341.2,0.4582]
[1735738748298,3.2078,3341.6,3341.2,0.4582]
[1735738748499,0.29986,3341.4,3341.3,0.8903]
[1735738749710,3.50764,3341.6,3341.4,0.29985]
[1735738749904,3.452,3341.8,3341.5,3.2078]
[1735738750110,3.75182,3341.8,3341.6,0.29983]
[1735738750417,0.4254,3342.3,3341.5,3.2078]
[1735738750618,0.29979,3342.2,3342.0,0.2998]
[1735738750916,0.29978,3342.2,3342.1,0.4415]
[1735738757629,0.29979,3342.1,3342.0,0.4336]
[1735738757830,0.2998,3342.0,3341.9,3.2078]
[1735738758233,0.4504,3342.1,3341.6,1.65483]
[1735738758729,0.29981,3342.0,3341.8,3.2078]
[1735738758930,0.29981,3341.9,3341.8,3.2078]
[1735738759131,0.2998,3342.1,3341.8,3.50761]
[1735738759425,0.29981,3341.9,3341.8,3.2078]
[1735738761325,0.4504,3342.3,3341.9,0.29981]
[1735738761528,0.29978,3342.2,3342.1,0.29979]
[1735738761725,0.29982,3341.8,3341.7,3.2078]
[1735738762034,0.29982,3341.8,3341.7,0.4424]
[1735738770634,0.29986,3341.4,3341.2,40.8]
[1735738770840,2.27710259,3341.8,3341.3,0.4542]
[1735738771032,0.29985,3341.5,3341.3,0.4542]
[1735738771537,0.29985,3341.4,3341.3,0.4542]
[1735738772135,0.74485,3341.4,3341.3,0.4542]
[1735738775240,0.445,3341.4,3340.8,3.2078]
[1735738775537,0.2999,3340.9,3340.8,4.603]
[1735738777234,2.27710259,3341.2,3340.8,4.603]
[1735738777443,0.29989,3341.0,3340.8,4.603]
[1735738777938,0.29989,3341.0,3340.8,1.3952]
[1735738778144,0.2999,3340.9,3340.8,4.603]
[1735738779536,0.2999,3340.9,3340.8,1.3952]
[1735738779834,0.29994,3340.5,3340.4,3.2078]
[1735738780233,0.29994,3340.5,3340.3,1.3273]
[1735738780234,0.29994,3340.4,3340.3,1.3273]
[1735738786445,0.29994,3340.4,3340.3,0.4557]
[1735738794352,2.27710259,3340.6,3340.3,0.4557]
[1735738794554,0.29994,3340.4,3340.3,0.4557]
[1735738796959,0.29995,3340.3,3340.2,0.9013]
[1735738797256,3.02125259,3340.3,3340.2,0.9013]
[1735738799554,0.29997,3340.1,3340.0,3.6306]
[1735738802663,0.29997,3340.1,3340.0,0.4228]
[1735738804164,0.29997,3340.1,3339.7,0.4647]
[1735738804165,0.3,3339.8,3339.7,0.4647]
[1735738805060,0.8565,3340.2,3339.7,0.4647]
[1735738805260,0.4295,3340.2,3339.7,0.4647]
[1735738805464,0.3,3339.8,3339.7,0.7647]
[1735738806464,0.3,3339.8,3339.7,0.4647]
[1735738808468,3.2078,3339.8,3339.3,0.73803]
[1735738808764,0.30003,3339.4,3339.3,0.438]
[1735738810266,2.57713259,3339.4,3339.3,0.438]
[1735738810969,2.27710259,3339.4,3339.1,3.2078]
[1735738811163,0.30005,3339.2,3339.1,3.2078]
[1735738812364,0.30009,3338.8,3338.7,1.3105]
[1735738812667,2.57719259,3338.8,3338.7,0.8536]
[1735738812974,2.57719259,3338.8,3338.3,3.2078]
[1735738812975,0.30011,3338.5,3338.4,0.4569]
[1735738813172,0.30011,3338.5,3338.4,1.3219]
[1735738814158,2.27710259,3338.8,3338.4,1.3219]
[1735738814364,1.63657,3339.1,3338.5,0.30011]
[1735738814365,0.3001,3338.7,3338.5,0.30011]
[1735738814762,0.3001,3338.7,3338.4,1.62202]
[1735738815973,2.71730259,3339.1,3338.4,1.62202]
[1735738816172,0.30011,3338.6,3338.4,1.62202]
[1735738817374,3.2078,3339.0,3338.4,1.3219]
[1735738817375,0.30011,3338.5,3338.4,1.3219]
[1735738818972,0.30011,3338.5,3338.4,0.865]
[1735738819277,0.30013,3338.3,3338.2,3.2078]
[1735738819469,0.30015,3338.1,3338.0,0.897]
[1735738819775,0.30015,3338.1,3338.0,0.4539]
[1735738819972,0.30018,3337.8,3337.7,0.4431]
[1735738820473,3.2078,3338.1,3337.7,0.4431]
[1735738820672,0.30017,3337.9,3337.7,0.4431]
[1735738820874,0.30017,3337.9,3337.7,0.74329]
[1735738821169,0.30021,3337.5,3337.2,0.30023]
[1735738821374,2.27710259,3337.8,3337.2,0.75843]
[1735738821375,3.2078,3337.6,3337.2,0.75843]
[1735738821575,0.30021,3337.5,3337.3,40.8]
[1735738821768,0.3002,3337.5,3337.3,40.8]
[1735738822268,3.508,3337.6,3337.3,41.10022]
[1735738822975,0.3002,3337.6,3337.3,41.10022]
[1735738823174,2.72190259,3337.8,3337.3,40.8]
[1735738823373,0.30019,3337.7,3337.4,0.30021]
[1735738823570,0.30019,3337.7,3337.5,0.4619]
[1735738825171,0.30019,3337.7,3337.6,0.4586]
[1735738826070,3.452,3338.2,3338.1,0.30015]
[1735738826466,3.452,3338.2,3338.1,41.10015]
[1735738826876,3.452,3338.2,3338.1,40.8]
[1735738827070,3.452,3338.2,3338.1,41.10015]
[1735738827872,3.452,3338.2,3338.1,0.30015]
[1735738828763,3.452,3338.2,3338.1,0.74255]
[1735738828965,3.452,3338.2,3338.1,0.4424]
[1735738829469,3.452,3338.2,3338.0,40.8]
[1735738829665,5.48490259,3338.4,3337.9,3.2078]
[1735738829870,0.895,3338.3,3337.9,3.2078]
[1735738830072,0.30016,3338.0,3337.9,3.2078]
[1735738830375,0.30016,3338.0,3337.6,0.4586]
[1735738830376,0.30019,3337.7,3337.6,0.4586]
[1735738830975,3.2078,3338.0,3337.6,0.4586]
[1735738831170,0.30018,3337.8,3337.6,0.4586]
[1735738832278,0.30018,3337.8,3337.6,0.75879]
[1735738832680,3.2078,3338.0,3337.9,0.30017]
[1735738832877,3.75215,3338.2,3337.9,0.30017]
[1735738833077,3.75215,3338.2,3338.0,0.4625]
[1735738833275,3.75215,3338.2,3338.0,0.9032]
[1735738833474,3.452,3338.2,3338.1,0.30015]
[1735738833777,3.2078,3338.9,3338.1,3.2078]
[1735738833980,3.2078,3338.9,3338.2,0.4618]
[1735738834182,0.30011,3338.6,3338.2,0.4618]
[1735738834379,0.3001,3338.7,3338.5,0.30011]
[1735738834581,0.3001,3338.7,3338.6,0.4407]
[1735738834875,0.30009,3338.8,3338.6,0.7408]
[1735738835072,0.3001,3338.7,3338.6,0.4407]
[1735738835677,3.2078,3338.9,3338.6,0.7408]
[1735738835881,0.3001,3338.8,3338.6,0.4407]
[1735738836178,3.2078,3338.9,3338.2,0.4618]
[1735738836375,3.2078,3338.9,3338.3,0.75823]
[1735738836579,0.30011,3338.6,3338.4,0.30012]
[1735738837179,0.30012,3338.5,3338.3,0.75823]
[1735738837375,0.30014,3338.3,3338.1,3.2078]
[1735738837580,0.30013,3338.4,3338.2,0.882]
[1735738837782,0.30013,3338.3,3338.2,0.882]
[1735738838778,2.27710259,3338.7,3338.2,0.882]
[1735738838973,0.30013,3338.4,3338.2,1.18214]
[1735738839180,2.27710259,3338.7,3338.2,0.882]
[1735738839380,0.30013,3338.3,3338.2,0.882]
[1735738839586,0.30013,3338.4,3338.2,1.18214]
[1735738840288,0.30013,3338.3,3338.2,0.882]
[1735738840587,0.30013,3338.3,3337.6,0.30019]
[1735738840588,1.05047,3338.3,3337.6,0.30019]
[1735738840784,2.27710259,3338.1,3337.5,4.0816]
[1735738840984,0.3002,3337.6,3337.5,4.0816]
[1735738841682,0.3002,3337.6,3337.5,3.6512]
[1735738841885,0.3002,3337.6,3337.5,3.2078]
[1735738842286,0.30022,3337.3,3337.1,3.50803]
[1735738843087,0.30023,3337.2,3337.1,3.2078]
[1735738843986,0.4616,3337.7,3337.1,3.2078]
[1735738844290,0.30022,3337.4,3337.2,0.30023]
[1735738844489,0.30023,3337.3,3337.1,3.50804]
[1735738845387,0.4616,3337.7,3337.1,3.2078]
[1735738845589,0.30023,3337.2,3337.1,3.2078]
[1735738846385,5.48490259,3337.2,3336.6,40.8]
[1735738846585,0.3003,3336.5,3336.3,1.20711]
[1735738846991,0.30029,3336.6,3336.3,1.20711]
[1735738847591,0.30029,3336.6,3336.3,0.9068]
[1735738847892,0.30028,3336.7,3336.4,0.3003]
[1735738848094,0.30028,3336.7,3336.3,0.9068]
[1735738848290,0.30028,3336.7,3336.4,0.3003]
[1735738848492,0.4643,3337.1,3336.4,0.3003]
[1735738848690,0.4643,3337.1,3336.3,0.9068]
[1735738848891,0.30029,3336.6,3336.4,0.3003]
[1735738849103,0.422,3337.4,3336.5,2.27710259]
[1735738849297,0.422,3337.4,3336.9,3.2078]
[1735738849496,0.30024,3337.2,3337.0,0.8647]
[1735738849692,0.30022,3337.4,3337.1,0.30024]
[1735738850200,3.6449,3337.6,3337.1,40.8]
[1735738850492,3.508,3337.6,3337.2,0.30023]
[1735738850697,3.508,3337.6,3337.2,0.46]
[1735738850698,3.2078,3337.6,3337.2,0.46]
[1735738850898,0.3002,3337.5,3337.3,0.30022]
[1735738851094,3.508,3337.6,3337.3,0.30022]
[1735738851993,0.30021,3337.5,3337.3,0.30022]
[1735738853497,0.30021,3337.5,3337.2,0.76022]
[1735738854300,3.2078,3337.6,3337.1,40.8]
[1735738854600,3.2078,3337.6,3337.0,0.8647]
[1735738854803,0.3002,3337.5,3337.2,0.30023]
[1735738855002,0.30021,3337.4,3337.2,0.30023]
[1735738855302,0.30021,3337.4,3337.1,0.30023]
[1735738855906,0.30021,3337.4,3337.0,0.8647]
[1735738856106,3.2078,3337.6,3337.0,0.8647]
[1735738856307,0.30022,3337.4,3337.2,0.30023]
[1735738857004,3.2078,3337.6,3337.5,0.3002]
[1735738857207,5.48490259,3338.4,3337.5,3.2078]
[1735738857505,3.50793,3338.4,3338.2,0.30014]
[1735738857701,3.2078,3338.4,3338.3,0.30013]
[1735738857905,2.27710259,3338.7,3338.1,3.2078]
[1735738858111,0.30009,3338.8,3338.2,0.8904]
[1735738858298,0.3001,3338.7,3338.4,0.30012]
[1735738858505,3.2078,3338.9,3338.3,0.46]
[1735738858706,0.30009,3338.8,3338.3,0.46]
[1735738858908,0.30009,3338.8,3338.5,0.30011]
[1735738859106,3.2078,3338.9,3338.8,0.30009]
[1735738859511,0.30009,3338.8,3338.5,0.30011]
[1735738859711,3.2078,3338.9,3338.7,0.30009]
[1735738860015,3.50788,3338.9,3338.8,0.4621]
[1735738861406,3.2078,3338.9,3338.4,41.10012]
[1735738861711,0.3001,3338.7,3338.4,41.10012]
[1735738862014,3.50788,3338.9,3338.7,0.30009]
[1735738862703,3.50788,3338.9,3338.8,0.30009]
[1735738862704,3.2078,3338.9,3338.8,0.30009]
[1735738862908,0.30005,3339.2,3339.0,0.30006]
[1735738863311,0.30005,3339.2,3338.9,0.30007]
[1735738863508,3.2078,3339.3,3339.0,0.8991]
[1735738863708,3.50785,3339.3,3339.0,1.19917]
[1735738863911,0.30005,3339.2,3339.0,0.8991]
[1735738864110,3.2078,3339.3,3339.1,0.30006]
[1735738864314,3.50785,3339.3,3339.0,0.8991]
[1735738864516,0.30006,3339.2,3339.0,0.8991]
[1735738864712,0.30005,3339.2,3339.0,0.8991]
[1735738865108,0.30006,3339.1,3339.0,0.8991]
[1735738865610,3.2078,3339.3,3339.0,0.8991]
[1735738865812,3.50785,3339.3,3339.0,1.19916]
[1735738866313,0.30006,3339.2,3339.0,0.8991]
[1735738866519,3.50785,3339.3,3339.0,0.8991]
[1735738866819,0.30006,3339.2,3339.0,0.8991]
[1735738868112,3.2078,3339.3,3339.1,0.30005]
[1735738869013,3.2078,3339.3,3339.0,0.8991]
[1735738869014,0.30003,3339.5,3339.2,0.30005]
[1735738869215,3.50781,3339.7,3339.4,0.30003]
[1735738870311,0.30003,3339.5,3339.3,0.30004]
[1735738870714,0.30002,3339.6,3339.1,0.4611]
[1735738870909,2.27710259,3339.6,3339.1,0.4611]
[1735738871115,0.30004,3339.4,3339.1,0.76116]
[1735738871610,0.30003,3339.5,3339.2,0.30005]
[1735738871808,0.30003,3339.5,3339.3,0.30004]
[1735738872517,2.57712259,3339.6,3339.4,0.30003]
[1735738872712,3.50781,3339.7,3339.5,0.30002]
[1735738872912,3.50781,3339.7,3339.6,0.4675]
[1735738873112,3.2078,3339.7,3339.6,0.76752]
[1735738873315,3.2078,3339.7,3339.6,0.4675]
[1735738873513,3.50781,3339.7,3339.6,0.4675]
[1735738873815,0.30003,3339.4,3339.2,0.30005]
[1735738874120,3.50781,3339.7,3339.5,0.30002]
[1735738874319,0.30002,3339.6,3339.4,0.30003]
[1735738874519,0.30002,3339.6,3339.4,40.8]
[1735738874822,3.2078,3339.7,3339.6,0.30002]
[1735738875211,3.2078,3339.7,3339.4,40.8]
[1735738875417,0.30002,3339.6,3339.4,41.10002]
[1735738876622,3.2078,3339.7,3339.2,0.4675]
[1735738876820,0.30004,3339.3,3339.2,0.4675]
[1735738877122,0.30006,3339.1,3339.0,0.4507]
[1735738877422,0.30006,3339.2,3339.0,0.4507]
[1735738877613,0.30006,3339.2,3339.1,0.30006]
[1735738877816,0.30006,3339.2,3339.1,0.73246]
[1735738878721,0.30002,3339.5,3339.3,0.30004]
[1735738878917,0.30004,3339.3,3339.1,0.73246]
[1735738879130,2.72170259,3339.6,3339.1,0.4324]
[1735738879423,2.72170259,3339.6,3339.4,0.30003]
[1735738879424,2.57712259,3339.6,3339.4,0.30003]
[1735738879624,2.27710259,3339.6,3339.4,0.30003]
[1735738879820,3.2078,3339.7,3339.1,0.4324]
[1735738880022,0.30002,3339.6,3339.5,0.30002]
[1735738880321,3.2078,3339.7,3339.0,0.4507]
[1735738880527,3.50781,3339.7,3339.5,0.30002]
[1735738880834,3.50781,3339.7,3339.6,0.72852]
[1735738881322,3.50781,3339.7,3338.9,0.78648]
[1735738881520,3.50781,3339.7,3339.6,0.30002]
[1735738881521,3.2078,3339.7,3339.6,0.30002]
[1735738881725,0.4526,3340.0,3339.3,3.2078]
[1735738882028,0.29999,3339.9,3339.7,0.3]
[1735738882421,0.29999,3339.9,3339.4,0.4504]
[1735738882724,3.2078,3340.1,3339.4,0.4504]
[1735738882725,3.2078,3340.1,3339.8,0.3]
[1735738883729,0.29999,3339.9,3339.7,0.3]
[1735738884626,0.29998,3340.0,3339.5,0.4648]
[1735738884824,3.2078,3340.1,3339.8,0.29999]
[1735738885124,0.29999,3339.9,3339.8,0.29999]
[1735738885627,3.2078,3340.1,3339.5,0.4648]
[1735738885824,0.29999,3340.0,3339.8,0.29999]
[1735738886026,0.29999,3340.0,3339.6,0.30002]
[1735738886226,0.29999,3339.9,3339.8,0.29999]
[1735738886428,3.2078,3340.1,3339.8,0.29999]
[1735738886628,0.29999,3340.0,3339.5,0.4648]
[1735738886930,3.2078,3340.1,3340.0,0.29998]
[1735738889030,3.50777,3340.1,3340.0,0.29998]
[1735738889933,3.2078,3340.1,3340.0,0.29998]
[1735738890229,0.29996,3340.2,3340.1,0.29996]
[1735738891031,0.29995,3340.4,3340.3,0.29994]
[1735738892033,3.2078,3340.5,3339.9,41.244]
[1735738892236,0.29996,3340.3,3340.2,0.29996]
[1735738892734,0.29995,3340.4,3340.3,0.29995]
[1735738893438,3.2078,3340.5,3339.9,40.8]
[1735738893732,3.2078,3340.5,3340.4,0.29994]
[1735738894323,0.29995,3340.4,3340.2,0.29996]
[1735738894527,0.29995,3340.4,3340.3,0.29995]
[1735738894733,3.50774,3340.5,3340.3,0.29995]
[1735738894931,0.29994,3340.4,3340.3,0.29995]
[1735738895133,0.29994,3340.4,3339.9,40.8]
[1735738895332,3.2078,3340.5,3339.9,41.988]
[1735738895333,0.29996,3340.3,3339.9,41.988]
[1735738895635,0.29996,3340.3,3340.1,0.29997]
[1735738895837,3.2078,3340.5,3339.9,41.988]
[1735738896030,0.29995,3340.4,3340.2,0.29996]
[1735738896430,0.29995,3340.3,3340.1,0.29997]
[1735738896636,0.29996,3340.2,3340.0,0.29997]
[1735738896829,0.29996,3340.2,3340.1,0.29997]
[1735738897827,0.29995,3340.4,3340.3,0.29995]
[1735738898031,3.2078,3340.5,3339.7,4.3958]
[1735738898338,0.29998,3340.1,3340.0,0.29998]
[1735738900339,0.3,3339.9,3339.8,0.3]
[1735738900538,0.3,3339.8,3339.7,3.5078]
[1735738900742,0.3,3339.8,3339.7,3.2078]
[1735738901138,0.3,3339.8,3339.7,3.50781]
[1735738901742,0.9014,3340.1,3339.7,3.2078]
[1735738901938,0.3,3339.9,3339.8,0.29999]
[1735738902137,1.18457,3340.4,3339.7,3.2078]
[1735738902138,0.4544,3340.4,3339.7,3.2078]
[1735738902339,0.29999,3340.0,3339.9,0.29997]
[1735738906544,0.3,3339.9,3339.8,0.29999]
[1735738908045,0.3,3339.8,3339.7,3.5078]
[1735738908245,0.7407,3339.8,3339.7,3.5078]
[1735738909038,0.7407,3339.8,3339.7,3.2078]
[1735738909239,0.7407,3339.8,3339.2,4.69643261]
[1735738909240,0.4407,3339.8,3339.2,4.69643261]
[1735738909443,0.30003,3339.5,3339.4,0.30003]
[1735738909639,0.30003,3339.5,3339.4,41.10003]
[1735738910246,0.30002,3339.6,3339.5,0.30001]
[1735738910448,0.30002,3339.6,3339.4,40.8]
[1735738910449,0.30001,3339.7,3339.6,0.30001]
[1735738912247,0.7407,3339.8,3339.7,0.30001]
[1735738912440,0.3,3339.8,3339.7,0.30001]
[1735738917246,0.29999,3339.9,3339.8,0.29999]
[1735738918448,0.4317,3340.1,3339.6,0.4535]
[1735738918750,0.29998,3340.0,3339.9,0.29998]
[1735738919152,0.73167,3340.1,3340.0,0.29998]
[1735738919555,0.30001,3339.8,3339.7,0.3]
[1735738919852,0.4317,3340.1,3339.6,0.30001]
[1735738919853,0.30001,3339.7,3339.6,0.30001]
[1735738920052,0.75141,3339.7,3339.6,0.30001]
[1735738920350,0.4514,3339.7,3339.4,7.90423261]
[1735738920557,0.30002,3339.6,3339.5,0.30002]
[1735738920754,0.75142,3339.7,3339.6,0.30002]
[1735738921353,0.30002,3339.6,3339.5,0.30002]
[1735738921948,0.75142,3339.7,3339.6,0.30002]
[1735738922258,0.30002,3339.7,3339.6,0.30002]
[1735738923153,0.4249,3340.0,3339.4,3.2078]
[1735738923353,0.72488,3340.0,3339.9,0.29999]
[1735738923659,3.50776,3340.2,3340.1,0.29997]
[1735738923860,3.2078,3340.2,3340.1,0.29997]
[1735738924462,3.2078,3340.2,3339.8,0.4371]
[1735738924661,3.2078,3340.2,3339.9,0.4668]
[1735738924862,3.2078,3340.2,3340.1,0.29997]
[1735738924863,3.50777,3340.2,3340.1,0.29997]
[1735738927065,0.29998,3340.1,3340.0,0.29997]
[1735738928358,3.2078,3340.2,3339.9,0.4668]
[1735738928662,0.29998,3340.0,3339.9,0.4668]
[1735738929065,0.29998,3340.0,3339.9,0.76679]
[1735738929764,0.30001,3339.7,3339.6,4.99644261]
[1735738929963,0.30001,3339.7,3339.6,4.69643261]
[1735738930864,0.30002,3339.6,3339.5,0.30002]
[1735738931761,0.30001,3339.7,3339.6,0.30001]
[1735738934063,0.30001,3339.7,3339.6,41.10001]
[1735738934263,0.4471,3340.0,3339.6,40.8]
[1735738934563,0.30001,3339.8,3339.7,0.3]
[1735738934763,0.4471,3340.0,3339.6,40.8]
[1735738934960,0.30001,3339.7,3339.4,3.6421]
[1735738935160,0.30002,3339.6,3339.5,0.30002]
[1735738936164,0.30001,3339.7,3339.6,0.30001]
[1735738937061,7.13492259,3340.2,3339.4,44.4421]
[1735738937062,3.651,3340.2,3339.4,44.4421]
[1735738937263,3.651,3340.2,3340.0,0.29997]
[1735738937264,0.29998,3340.1,3340.0,0.29997]
[1735738937864,0.29999,3340.0,3339.9,0.29999]
[1735738938870,3.651,3340.2,3339.5,4.69643261]
[1735738939168,0.29999,3340.0,3339.9,0.29998]
[1735738940566,3.651,3340.2,3339.8,0.29999]
[1735738940771,0.3,3339.9,3339.8,0.29999]
[1735738941571,0.29999,3340.0,3339.9,0.29998]
[1735738941763,3.651,3340.2,3339.5,0.75006]
[1735738941960,0.29998,3340.0,3339.9,0.29999]
[1735738943463,0.29999,3339.9,3339.8,0.29999]
[1735738944467,0.3,3339.8,3339.7,0.3]
[1735738945974,0.4432,3340.2,3339.6,3.2078]
[1735738946174,0.29999,3339.9,3339.8,0.29999]
[1735738948074,3.2078,3340.0,3339.5,4.69643261]
[1735738948277,0.30001,3339.8,3339.7,0.3]
[1735738952471,3.95777,3340.0,3339.4,5.13073261]